{"text_format":"1","workbook":"xlsx","n_sheets":2,"sheets":["NET_Fin_izvjesce_analiza","Nalog_za_isplatu"],"not_rendered":{"charts":0,"images":2,"macros":1,"external_links":0,"defined_names":11,"comments":1,"pivot_tables":0},"unopened":[],"bounds":{"document_bytes":16777216,"sheet_cells":100000,"rows_first":2000,"rows_last":500,"rows_between":2000,"halvings":0,"cell_chars":16384,"cell_head_chars":4096},"cells_cut":0,"cells_raw":0,"read":"whole","date_system":"1900"}

{"sheet":"NET_Fin_izvjesce_analiza","index":0,"n_rows":58,"n_cols":10,"rows_kept":58,"cut":false,"hidden":false,"merged":[[1,0,1,5],[2,0,2,5],[6,1,6,5],[4,1,4,5],[5,1,5,5],[51,0,51,2],[18,1,18,5],[17,1,17,5],[15,1,15,5],[16,1,16,5],[14,1,14,5],[8,1,8,5],[9,1,9,5],[10,1,10,5],[13,1,13,5],[11,1,11,5],[12,1,12,5]]}
["PRILOG III - ZAHTJEV ZA REFUNDACIJU TROŠKOVA SUDJELOVANJA NA AKTIVNOSTI UMREŽAVANJA U OKVIRU PROGRAMA EUROPSKE SNAGE SOLIDARNOSTI (NET)- FINANCIJSKI DIO"]
["\nNajkasnije 15 kalendarskih dana od završetka Aktivnosti Agenciji za mobilnost i programe EU (dalje u tekstu: Agencija) potrebno je dostaviti niže navedene dokumente na adresu e-pošte tca_mladi_net@ampeu.hr  \n1. Ispunjen, potpisan i skeniran zahtjev za refundaciju – narativni dio u pdf. formatu\n2. Ispunjen, potpisan i skeniran zahtjev za refundaciju – financijski dio u pdf. formatu \n3. Ispunjen zahtjev za refundaciju – financijski dio  u excel formatu \n4. Dokaznu dokumentaciju kako je opisano u zahtjevu za refundaciju\n"]
["Dokazna dokumentacija za pravdanje nastalih troškova uključuje:\n1. Skenirane potvrde o sudjelovanju odnosno Youthpass\n2. Ovisno o sredstvu putovanja: skenirane putne karte, račune, ukrcajne propusnice. \n3. U slučaju da Vam je Agencija prethodno odobrila putovanje automobilom, potrebno je priložiti skenirane račune za plaćene cestarine, tunelarine, vinjete, kao i ispis rute putovanja (http://www.map.hak.hr ).\" \n4. Skenirani dokument iz kojeg se vidi iznos plaćene naknade za izdavanje vize ako je ista bila uvjet za ulazak u zemlju u kojoj se održavala Aktivnost.\n5. U slučaju da Agencija podmiruje trošak smještaja, potrebno je priložiti skenirani račun za smještaj te potvrdu o plaćanju.\n6. Program rada \n\nAgencija ima pravo u svakom trenutku od Korisnika i Sudionika zatražiti na uvid originalnu dokumentaciju. \n",null,null,null,null,null,null,null,null,"Napomena: Obavezno kliknuti na \"Enable content\" ukoliko se pojavi u žutoj liniji u dokumentu!!!"]
[]
["Oznaka NET aktivnosti"]
["Naziv Korisnika"]
["Adresa Korisnika"]
["Adresa e-pošte Korisnika"]
["Točan naziv vlasnika računa"]
["OIB Korisnika"]
["IBAN Korisnika"]
["Model i poziv na broj (ako je primjenjivo)"]
["Naziv banke Korisnika"]
[]
["Ime i prezime Sudionika"]
["Adresa e-pošte Sudionika"]
["Naziv Aktivnosti"]
["Mjesto Aktivnosti"]
["Datum početka i završetka Aktivnosti"]
[null,null,null,null,null,null,null,null,{"$f":"ISNUMBER(SEARCH(\"2019\",B5))","v":false}]
["Ostvareni troškovi prijevoza/smještaja",null,null,null,null,null,"Popunjava djelatnik Agencije"]
["Datum ","Opis","Prijevozno sredstvo","prijevoz / smještaj / viza / testiranje","Valuta","Iznos","Tečaj EK","Odobrava se\n(DA/NE)","Iznos EUR "]
[null,null,null,null,null,null,null,null,{"$f":"IF(Table2[[#This Row],[Valuta]]<>\"\",IF(Table2[[#This Row],[Valuta]]=\"EUR\",Table2[[#This Row],[Iznos]],ROUND(Table2[[#This Row],[Iznos]]/Table2[[#This Row],[Tečaj EK]],2)),\"\")","v":""}]
[null,null,null,null,null,null,null,null,{"$f":"IF(Table2[[#This Row],[Valuta]]<>\"\",IF(Table2[[#This Row],[Valuta]]=\"EUR\",Table2[[#This Row],[Iznos]],ROUND(Table2[[#This Row],[Iznos]]/Table2[[#This Row],[Tečaj EK]],2)),\"\")","v":""}]
[null,null,null,null,null,null,null,null,{"$f":"IF(Table2[[#This Row],[Valuta]]<>\"\",IF(Table2[[#This Row],[Valuta]]=\"EUR\",Table2[[#This Row],[Iznos]],ROUND(Table2[[#This Row],[Iznos]]/Table2[[#This Row],[Tečaj EK]],2)),\"\")","v":""}]
[null,null,null,null,null,null,null,null,{"$f":"IF(Table2[[#This Row],[Valuta]]<>\"\",IF(Table2[[#This Row],[Valuta]]=\"EUR\",Table2[[#This Row],[Iznos]],ROUND(Table2[[#This Row],[Iznos]]/Table2[[#This Row],[Tečaj EK]],2)),\"\")","v":""}]
[null,null,null,null,null,null,null,null,{"$f":"IF(Table2[[#This Row],[Valuta]]<>\"\",IF(Table2[[#This Row],[Valuta]]=\"EUR\",Table2[[#This Row],[Iznos]],ROUND(Table2[[#This Row],[Iznos]]/Table2[[#This Row],[Tečaj EK]],2)),\"\")","v":""}]
[null,null,null,null,null,null,{"$f":"IF(Table2[[#This Row],[Valuta]]=\"EUR\",tecaj,\"\")","v":""},null,{"$f":"IF(Table2[[#This Row],[Valuta]]<>\"\",IF(Table2[[#This Row],[Valuta]]=\"EUR\",Table2[[#This Row],[Iznos]],ROUND(Table2[[#This Row],[Iznos]]/Table2[[#This Row],[Tečaj EK]],2)),\"\")","v":""}]
[null,null,null,null,null,null,{"$f":"IF(Table2[[#This Row],[Valuta]]=\"EUR\",tecaj,\"\")","v":""},null,{"$f":"IF(Table2[[#This Row],[Valuta]]<>\"\",IF(Table2[[#This Row],[Valuta]]=\"EUR\",Table2[[#This Row],[Iznos]],ROUND(Table2[[#This Row],[Iznos]]/Table2[[#This Row],[Tečaj EK]],2)),\"\")","v":""}]
[null,null,null,null,null,null,{"$f":"IF(Table2[[#This Row],[Valuta]]=\"EUR\",tecaj,\"\")","v":""},null,{"$f":"IF(Table2[[#This Row],[Valuta]]<>\"\",IF(Table2[[#This Row],[Valuta]]=\"EUR\",Table2[[#This Row],[Iznos]],ROUND(Table2[[#This Row],[Iznos]]/Table2[[#This Row],[Tečaj EK]],2)),\"\")","v":""}]
[null,null,null,null,null,null,{"$f":"IF(Table2[[#This Row],[Valuta]]=\"EUR\",tecaj,\"\")","v":""},null,{"$f":"IF(Table2[[#This Row],[Valuta]]<>\"\",IF(Table2[[#This Row],[Valuta]]=\"EUR\",Table2[[#This Row],[Iznos]],ROUND(Table2[[#This Row],[Iznos]]/Table2[[#This Row],[Tečaj EK]],2)),\"\")","v":""}]
[null,null,null,null,null,null,{"$f":"IF(Table2[[#This Row],[Valuta]]=\"EUR\",tecaj,\"\")","v":""},null,{"$f":"IF(Table2[[#This Row],[Valuta]]<>\"\",IF(Table2[[#This Row],[Valuta]]=\"EUR\",Table2[[#This Row],[Iznos]],ROUND(Table2[[#This Row],[Iznos]]/Table2[[#This Row],[Tečaj EK]],2)),\"\")","v":""}]
[null,null,null,null,null,null,{"$f":"IF(Table2[[#This Row],[Valuta]]=\"EUR\",tecaj,\"\")","v":""},null,{"$f":"IF(Table2[[#This Row],[Valuta]]<>\"\",IF(Table2[[#This Row],[Valuta]]=\"EUR\",Table2[[#This Row],[Iznos]],ROUND(Table2[[#This Row],[Iznos]]/Table2[[#This Row],[Tečaj EK]],2)),\"\")","v":""}]
[null,null,null,null,null,null,{"$f":"IF(Table2[[#This Row],[Valuta]]=\"EUR\",tecaj,\"\")","v":""},null,{"$f":"IF(Table2[[#This Row],[Valuta]]<>\"\",IF(Table2[[#This Row],[Valuta]]=\"EUR\",Table2[[#This Row],[Iznos]],ROUND(Table2[[#This Row],[Iznos]]/Table2[[#This Row],[Tečaj EK]],2)),\"\")","v":""}]
[null,null,null,null,null,null,{"$f":"IF(Table2[[#This Row],[Valuta]]=\"EUR\",tecaj,\"\")","v":""},null,{"$f":"IF(Table2[[#This Row],[Valuta]]<>\"\",IF(Table2[[#This Row],[Valuta]]=\"EUR\",Table2[[#This Row],[Iznos]],ROUND(Table2[[#This Row],[Iznos]]/Table2[[#This Row],[Tečaj EK]],2)),\"\")","v":""}]
[null,null,null,null,null,null,{"$f":"IF(Table2[[#This Row],[Valuta]]=\"EUR\",tecaj,\"\")","v":""},null,{"$f":"IF(Table2[[#This Row],[Valuta]]<>\"\",IF(Table2[[#This Row],[Valuta]]=\"EUR\",Table2[[#This Row],[Iznos]],ROUND(Table2[[#This Row],[Iznos]]/Table2[[#This Row],[Tečaj EK]],2)),\"\")","v":""}]
[null,null,null,null,null,null,{"$f":"IF(Table2[[#This Row],[Valuta]]=\"EUR\",tecaj,\"\")","v":""},null,{"$f":"IF(Table2[[#This Row],[Valuta]]<>\"\",IF(Table2[[#This Row],[Valuta]]=\"EUR\",Table2[[#This Row],[Iznos]],ROUND(Table2[[#This Row],[Iznos]]/Table2[[#This Row],[Tečaj EK]],2)),\"\")","v":""}]
["Total",null,null,null,null,{"$f":"SUBTOTAL(109,Table2[Iznos])","v":0},null,null,{"$f":"SUBTOTAL(109,Table2[[Iznos EUR ]])","v":0}]
[]
[]
["Datum: "]
["Potpis Sudionika Aktivnosti:"]
["Potpis zakonskog predstavnika i pečat Korisnika:"]
[]
[]
["Popunjava djelatnik Agencije",null,null,null,"Komentar"]
["PRIHVATLJIVI TROŠKOVI PUTA",{"$f":"SUMIFS(Table2[[Iznos EUR ]],Table2[prijevoz / smještaj / viza / testiranje],\"prijevoz\",Table2[Odobrava se\n(DA/NE)],\"DA\")","v":0},"Maksimalan iznos prihvatljivih troškova smještaja:"]
["PRIHVATLJIVI TROŠKOVI SMJEŠTAJA",{"$f":"MIN(SUMIFS(Table2[[Iznos EUR ]],Table2[prijevoz / smještaj / viza / testiranje],\"smještaj\",Table2[Odobrava se\n(DA/NE)],\"DA\"),C48)","v":0}]
["OSTALI PRIHVATLJIVI TROŠKOVI (viza, testiranje)",{"$f":"SUMIFS(Table2[[Iznos EUR ]],Table2[prijevoz / smještaj / viza / testiranje],\"testiranje\",Table2[Odobrava se\n(DA/NE)],\"DA\")+SUMIFS(Table2[[Iznos EUR ]],Table2[prijevoz / smještaj / viza / testiranje],\"viza\",Table2[Odobrava se\n(DA/NE)],\"DA\")","v":0}]
["IZNOS ISPLATE",{"$f":"SUM(B47:B49)","v":0}]
[]
["Popunjava djelatnik Agencije",null,null,null,"Popunjava djelatnik Agencije"]
["Datum primitka zahtjeva za refundaciju:",null,null,null,"Datum pregleda:"]
["Datum zahtjeva za nadopunu dokumentacije:"]
["Datum primitka nadopune dokumentacije: ",null,null,null,"Troškove odobrio/la:"]
["Rok za isplatu:",null,{"$f":"C53+30+(C55-C54)","v":"1900-01-30"}]
[null,null,null,null,"Narativno dio pregledan od strane programskog djelatnika"]
[null,null,{"$f":"C55-C54","v":0},null,"Potpis i datum:"]

{"sheet":"Nalog_za_isplatu","index":1,"n_rows":31,"n_cols":3,"rows_kept":31,"cut":false,"hidden":true,"merged":[[27,0,27,1],[28,0,28,1],[29,0,29,1]]}
["Agencija za mobilnost i programe Europske unije "]
["Naziv dokumenta",null,"Zahtjev za refundaciju za Aktivnosti osposobljavanja i suradnje"]
["Naziv ustanove/individualnog korisnika",null,{"$f":"NET_Fin_izvjesce_analiza!B6","v":0}]
["Adresa",null,{"$f":"NET_Fin_izvjesce_analiza!B7","v":0}]
["OIB",null,{"$f":"NET_Fin_izvjesce_analiza!B10","v":0}]
["Oznaka TCA aktivnosti",null,{"$f":"NET_Fin_izvjesce_analiza!B5","v":0}]
[]
["Zahtjev za isplatu "]
[]
["IBAN:                               ",{"$f":"NET_Fin_izvjesce_analiza!B11","v":0}]
[null,{"$f":"IF(NET_Fin_izvjesce_analiza!B12<>\"\", CONCATENATE(\"Model i poziv na broj: \",NET_Fin_izvjesce_analiza!B12),\"\")","v":""}]
["Banka:                         ",{"$f":"NET_Fin_izvjesce_analiza!B13","v":0}]
["Vlasnik računa:     ",{"$f":"NET_Fin_izvjesce_analiza!B9","v":0}]
[]
["Iznos naknade:",{"$f":"NET_Fin_izvjesce_analiza!B50","v":0}]
[]
[]
["Rok za isplatu :                   ",{"$f":"NET_Fin_izvjesce_analiza!C56","v":"1900-01-30"}]
[]
["Broj bankovnog računa s kojeg se izvršava plaćanje:  HR9723600001300165866"]
[]
["Podaci vezani uz isplatu"]
[]
["Aktivnost:        ",{"$f":"IF(MID(C6,9,3)=\"TCA\",\"A818065\",\"A818064\")","v":"A818064"}]
["Izvor:                ","Projekti za korisnike – izvor 51"]
[]
[]
[]
[]
[]
["U prilogu naloga je hodogram digitalnog potpisivanja dokumenta."]